[Event "*** Titled Tuesday Blitz"]
[Site "Chess.com"]
[Date "2020.11.10"]
[Round "5"]
[White "A-S-00"]
[Black "parintele_chess"]
[Result "1/2-1/2"]
[WhiteElo "2346"]
[BlackElo "2152"]
[TimeControl "180+1"]
[EndTime "11:02:19 PST"]
[Termination "Game drawn by 50-move rule"]

1. c4 {[%clk 0:02:58.7]} 1... e5 {[%clk 0:02:59.5]} 2. Nc3 {[%clk 0:02:57.6]}
2... Nf6 {[%clk 0:02:59.7]} 3. g3 {[%clk 0:02:57.7]} 3... c6 {[%clk 0:02:57.7]}
4. Bg2 {[%clk 0:02:47.5]} 4... d5 {[%clk 0:02:54.7]} 5. cxd5 {[%clk 0:02:47.7]}
5... cxd5 {[%clk 0:02:55.6]} 6. d4 {[%clk 0:02:47.6]} 6... e4 {[%clk 0:02:54.7]}
7. e3 {[%clk 0:02:43.3]} 7... Bb4 {[%clk 0:02:46.4]} 8. Ne2 {[%clk 0:02:42.8]}
8... Nc6 {[%clk 0:02:45.4]} 9. O-O {[%clk 0:02:42]} 9... Be6 {[%clk 0:02:43.8]}
10. Qb3 {[%clk 0:02:41.1]} 10... O-O {[%clk 0:02:39.6]} 11. a3 {[%clk
0:02:40.6]} 11... Bxc3 {[%clk 0:02:38.7]} 12. Nxc3 {[%clk 0:02:34.4]} 12... Na5
{[%clk 0:02:34]} 13. Qd1 {[%clk 0:02:32.1]} 13... Rc8 {[%clk 0:02:30.9]} 14. f3
{[%clk 0:02:28.5]} 14... Rxc3 {[%clk 0:02:23.3]} 15. bxc3 {[%clk 0:02:27.3]}
15... Nc4 {[%clk 0:02:23.7]} 16. a4 {[%clk 0:02:22]} 16... Qa5 {[%clk
0:02:19.6]} 17. Qb3 {[%clk 0:02:17.6]} 17... b6 {[%clk 0:02:16.6]} 18. Qb4
{[%clk 0:02:05.7]} 18... Rb8 {[%clk 0:02:06.3]} 19. Qxa5 {[%clk 0:02:01.4]}
19... bxa5 {[%clk 0:02:07.2]} 20. fxe4 {[%clk 0:01:54.9]} 20... dxe4 {[%clk
0:02:02.6]} 21. Rxf6 {[%clk 0:01:22]} 21... gxf6 {[%clk 0:02:02.1]} 22. Bxe4
{[%clk 0:01:21.9]} 22... Rb3 {[%clk 0:01:56.1]} 23. Kf2 {[%clk 0:01:03.6]} 23...
Rxc3 {[%clk 0:01:51.3]} 24. Rb1 {[%clk 0:01:02.1]} 24... Bd7 {[%clk 0:01:35.1]}
25. Bd5 {[%clk 0:00:25.7]} 25... Rc2+ {[%clk 0:01:18.5]} 26. Kf3 {[%clk
0:00:23.4]} 26... Bxa4 {[%clk 0:01:18.7]} 27. e4 {[%clk 0:00:23.1]} 27... Nd2+
{[%clk 0:01:07.3]} 28. Bxd2 {[%clk 0:00:22.5]} 28... Rxd2 {[%clk 0:01:08.2]} 29.
Ke3 {[%clk 0:00:21.6]} 29... Rxh2 {[%clk 0:01:06.8]} 30. Rb7 {[%clk 0:00:21.2]}
30... Bd1 {[%clk 0:01:01.9]} 31. Rxf7 {[%clk 0:00:19]} 31... Kh8 {[%clk
0:01:01.2]} 32. Rxf6 {[%clk 0:00:17.2]} 32... a4 {[%clk 0:01:01.6]} 33. Rf8+
{[%clk 0:00:16.3]} 33... Kg7 {[%clk 0:01:01.9]} 34. Rf7+ {[%clk 0:00:16.6]}
34... Kg6 {[%clk 0:01:02.4]} 35. Rxa7 {[%clk 0:00:16.7]} 35... Rg2 {[%clk
0:01:00.4]} 36. e5 {[%clk 0:00:15.6]} 36... Rxg3+ {[%clk 0:00:59.4]} 37. Kd2
{[%clk 0:00:15.5]} 37... Bf3 {[%clk 0:00:57.5]} 38. Bf7+ {[%clk 0:00:10]} 38...
Kf5 {[%clk 0:00:54.6]} 39. Rxa4 {[%clk 0:00:09.1]} 39... Be4 {[%clk 0:00:48.8]}
40. e6 {[%clk 0:00:07.9]} 40... Kf6 {[%clk 0:00:47]} 41. Ra7 {[%clk 0:00:06.5]}
41... Bd5 {[%clk 0:00:44.6]} 42. Ra6 {[%clk 0:00:03.7]} 42... h5 {[%clk
0:00:26.9]} 43. e7+ {[%clk 0:00:03.2]} 43... Kxe7 {[%clk 0:00:26.6]} 44. Bxd5
{[%clk 0:00:02.4]} 44... h4 {[%clk 0:00:26.9]} 45. Rh6 {[%clk 0:00:01.8]} 45...
Rg4 {[%clk 0:00:25.2]} 46. Bf3 {[%clk 0:00:01.8]} 46... Rxd4+ {[%clk 0:00:25.2]}
47. Ke3 {[%clk 0:00:02.7]} 47... Rb4 {[%clk 0:00:25.2]} 48. Kf2 {[%clk
0:00:03.1]} 48... Kf7 {[%clk 0:00:24.4]} 49. Kg2 {[%clk 0:00:03.4]} 49... Kg7
{[%clk 0:00:24.4]} 50. Rh5 {[%clk 0:00:03.9]} 50... Kg6 {[%clk 0:00:24]} 51. Rd5
{[%clk 0:00:03.3]} 51... Rc4 {[%clk 0:00:21.1]} 52. Kh3 {[%clk 0:00:03]} 52...
Rf4 {[%clk 0:00:21.2]} 53. Bg4 {[%clk 0:00:03.2]} 53... Rf2 {[%clk 0:00:21]} 54.
Kxh4 {[%clk 0:00:03.6]} 54... Rh2+ {[%clk 0:00:21.5]} 55. Kg3 {[%clk 0:00:04]}
55... Rh1 {[%clk 0:00:21.2]} 56. Rd6+ {[%clk 0:00:04.3]} 56... Kg5 {[%clk
0:00:21.1]} 57. Rd5+ {[%clk 0:00:04.7]} 57... Kg6 {[%clk 0:00:21.2]} 58. Kf4
{[%clk 0:00:05.2]} 58... Rf1+ {[%clk 0:00:21.2]} 59. Bf3 {[%clk 0:00:05.5]}
59... Rc1 {[%clk 0:00:21.7]} 60. Rd6+ {[%clk 0:00:05.7]} 60... Kf7 {[%clk
0:00:20.7]} 61. Kf5 {[%clk 0:00:06.1]} 61... Ke7 {[%clk 0:00:20.6]} 62. Re6+
{[%clk 0:00:05.7]} 62... Kd7 {[%clk 0:00:20.5]} 63. Rh6 {[%clk 0:00:06]} 63...
Rc5+ {[%clk 0:00:20]} 64. Kf4 {[%clk 0:00:05.7]} 64... Ke7 {[%clk 0:00:18.4]}
65. Be4 {[%clk 0:00:05.9]} 65... Kd7 {[%clk 0:00:16]} 66. Bf5+ {[%clk
0:00:04.9]} 66... Ke7 {[%clk 0:00:15.2]} 67. Ke4 {[%clk 0:00:05.5]} 67... Ra5
{[%clk 0:00:13.1]} 68. Kf4 {[%clk 0:00:05.2]} 68... Kf7 {[%clk 0:00:11.9]} 69.
Rh7+ {[%clk 0:00:02.2]} 69... Kf6 {[%clk 0:00:11.9]} 70. Rh6+ {[%clk 0:00:02.5]}
70... Kg7 {[%clk 0:00:12]} 71. Rc6 {[%clk 0:00:03.1]} 71... Kf7 {[%clk 0:00:11]}
72. Kg5 {[%clk 0:00:03.4]} 72... Ke7 {[%clk 0:00:10.3]} 73. Re6+ {[%clk
0:00:03.4]} 73... Kf7 {[%clk 0:00:08.5]} 74. Rc6 {[%clk 0:00:03.3]} 74... Ke7
{[%clk 0:00:08.5]} 75. Rc7+ {[%clk 0:00:03.4]} 75... Kd6 {[%clk 0:00:08.2]} 76.
Rd7+ {[%clk 0:00:03.8]} 76... Kc6 {[%clk 0:00:08.5]} 77. Rd3 {[%clk 0:00:02.4]}
77... Rc5 {[%clk 0:00:07.6]} 78. Kf6 {[%clk 0:00:02.5]} 78... Rc4 {[%clk
0:00:06.7]} 79. Be6 {[%clk 0:00:02.3]} 79... Rf4+ {[%clk 0:00:06.7]} 80. Ke5
{[%clk 0:00:02.4]} 80... Rf1 {[%clk 0:00:07.2]} 81. Bd7+ {[%clk 0:00:02.5]}
81... Kc7 {[%clk 0:00:07.2]} 82. Be6 {[%clk 0:00:02.7]} 82... Re1+ {[%clk
0:00:07.3]} 83. Kd5 {[%clk 0:00:03.1]} 83... Kd8 {[%clk 0:00:06.7]} 84. Kd6
{[%clk 0:00:02.4]} 84... Ke8 {[%clk 0:00:06.2]} 85. Rd4 {[%clk 0:00:02.7]} 85...
Kf8 {[%clk 0:00:06.2]} 86. Rf4+ {[%clk 0:00:02.8]} 86... Kg7 {[%clk 0:00:06.3]}
87. Rg4+ {[%clk 0:00:03.2]} 87... Kf6 {[%clk 0:00:06.5]} 88. Rf4+ {[%clk
0:00:04]} 88... Kg5 {[%clk 0:00:06.5]} 89. Rf5+ {[%clk 0:00:04.5]} 89... Kg6
{[%clk 0:00:06.8]} 90. Rf3 {[%clk 0:00:04.5]} 90... Kg5 {[%clk 0:00:07]} 91. Ke7
{[%clk 0:00:04.8]} 91... Rd1 {[%clk 0:00:05.7]} 92. Rf5+ {[%clk 0:00:05]} 92...
Kg6 {[%clk 0:00:05.7]} 93. Rf4 {[%clk 0:00:04.2]} 93... Kg5 {[%clk 0:00:05.8]}
94. Rf5+ {[%clk 0:00:04.4]} 94... Kg6 {[%clk 0:00:06]} 95. Rf2 {[%clk
0:00:05.3]} 95... Kg5 {[%clk 0:00:06]} 96. Rg2+ {[%clk 0:00:05.6]} 96... Kf4
{[%clk 0:00:06.3]} 97. Kf6 {[%clk 0:00:06.3]} 97... Ke4 {[%clk 0:00:06.2]} 98.
Rg4+ {[%clk 0:00:06.3]} 98... Kf3 {[%clk 0:00:06.1]} 99. Kf5 {[%clk 0:00:05.6]}
99... Re1 {[%clk 0:00:05.6]} 100. Bd5+ {[%clk 0:00:05.5]} 100... Kf2 {[%clk
0:00:05.2]} 101. Rg2+ {[%clk 0:00:05.4]} 101... Ke3 {[%clk 0:00:05.2]} 102. Rg4
{[%clk 0:00:05.3]} 102... Kd2 {[%clk 0:00:05.1]} 103. Rd4+ {[%clk 0:00:03.8]}
103... Kc3 {[%clk 0:00:05.2]} 104. Rf4 {[%clk 0:00:03.7]} 1/2-1/2

[Event "*** Titled Tuesday Blitz"]
[Site "Chess.com"]
[Date "2020.11.10"]
[Round "6"]
[White "andriipalchuk"]
[Black "tlomigtlis"]
[Result "0-1"]
[WhiteElo "2444"]
[BlackElo "2603"]
[TimeControl "180+1"]
[EndTime "11:03:33 PST"]
[Termination "tlomigtlis won by resignation"]

1. d4 {[%clk 0:03:00.9]} 1... d5 {[%clk 0:03:00]} 2. c4 {[%clk 0:03:00.3]} 2...
c6 {[%clk 0:03:00.5]} 3. Nc3 {[%clk 0:02:57.3]} 3... Nf6 {[%clk 0:03:00.8]} 4.
e3 {[%clk 0:02:56.8]} 4... e6 {[%clk 0:02:59.6]} 5. Nf3 {[%clk 0:02:56.7]} 5...
a6 {[%clk 0:02:59.7]} 6. b3 {[%clk 0:02:54.7]} 6... Bb4 {[%clk 0:02:58.8]} 7.
Bb2 {[%clk 0:02:55.1]} 7... Ne4 {[%clk 0:02:57.4]} 8. Qc2 {[%clk 0:02:55.6]}
8... Qa5 {[%clk 0:02:57.4]} 9. Rc1 {[%clk 0:02:55]} 9... Qxa2 {[%clk 0:02:57.5]}
10. Kd1 {[%clk 0:02:40.4]} 10... Bxc3 {[%clk 0:02:54.3]} 11. Bxc3 {[%clk
0:02:41.3]} 11... Nxf2+ {[%clk 0:02:54.5]} 0-1

[Event "*** Titled Tuesday Blitz"]
[Site "Chess.com"]
[Date "2020.11.10"]
[Round "6"]
[White "suyu28"]
[Black "grunbergmihai"]
[Result "1-0"]
[WhiteElo "2634"]
[BlackElo "2466"]
[TimeControl "180+1"]
[EndTime "11:04:59 PST"]
[Termination "suyu28 won by resignation"]

1. e4 {[%clk 0:03:00.9]} 1... Nf6 {[%clk 0:02:58.8]} 2. e5 {[%clk 0:03:00.7]}
2... Nd5 {[%clk 0:02:59]} 3. Nc3 {[%clk 0:02:59.8]} 3... Nxc3 {[%clk 0:02:58.4]}
4. dxc3 {[%clk 0:03:00]} 4... d5 {[%clk 0:02:59.3]} 5. Nf3 {[%clk 0:02:57.3]}
5... c5 {[%clk 0:02:58.7]} 6. Bd3 {[%clk 0:02:54.2]} 6... Bg4 {[%clk 0:02:57]}
7. O-O {[%clk 0:02:52.6]} 7... Nc6 {[%clk 0:02:56.5]} 8. Re1 {[%clk 0:02:52.7]}
8... e6 {[%clk 0:02:54.8]} 9. Bf4 {[%clk 0:02:50.2]} 9... Be7 {[%clk 0:02:52]}
10. Be2 {[%clk 0:02:42]} 10... Qc7 {[%clk 0:02:40.4]} 11. a4 {[%clk 0:02:37.5]}
11... Rd8 {[%clk 0:02:36.9]} 12. Nd2 {[%clk 0:02:34]} 12... Bxe2 {[%clk
0:02:29.7]} 13. Qxe2 {[%clk 0:02:33.8]} 13... O-O {[%clk 0:02:30.6]} 14. Qg4
{[%clk 0:02:31.8]} 14... Kh8 {[%clk 0:02:22.9]} 15. Re3 {[%clk 0:02:31.4]} 15...
Rg8 {[%clk 0:02:07.1]} 16. Rh3 {[%clk 0:02:25.2]} 16... g6 {[%clk 0:02:06.6]}
17. Rxh7+ {[%clk 0:02:20.9]} 1-0

[Event "*** Titled Tuesday Blitz"]
[Site "Chess.com"]
[Date "2020.11.10"]
[Round "6"]
[White "PetrolulSah"]
[Black "Nemsko"]
[Result "1-0"]
[WhiteElo "2225"]
[BlackElo "2354"]
[TimeControl "180+1"]
[EndTime "11:05:42 PST"]
[Termination "PetrolulSah won by resignation"]

1. d4 {[%clk 0:02:58.4]} 1... Nf6 {[%clk 0:02:59.8]} 2. c4 {[%clk 0:02:58.2]}
2... e6 {[%clk 0:02:59.4]} 3. g3 {[%clk 0:02:57.5]} 3... d5 {[%clk 0:02:59.1]}
4. Nf3 {[%clk 0:02:57.5]} 4... Bb4+ {[%clk 0:02:56.2]} 5. Bd2 {[%clk 0:02:56.9]}
5... Be7 {[%clk 0:02:56.6]} 6. Bg2 {[%clk 0:02:57.1]} 6... O-O {[%clk 0:02:57]}
7. O-O {[%clk 0:02:57.1]} 7... b6 {[%clk 0:02:57.6]} 8. cxd5 {[%clk 0:02:55.5]}
8... exd5 {[%clk 0:02:57.6]} 9. Nc3 {[%clk 0:02:55.5]} 9... c6 {[%clk
0:02:55.7]} 10. Ne5 {[%clk 0:02:46.8]} 10... Bf5 {[%clk 0:02:51.8]} 11. Rc1
{[%clk 0:02:45.2]} 11... Qd6 {[%clk 0:02:40.9]} 12. Bf4 {[%clk 0:02:44.2]} 12...
Qe6 {[%clk 0:02:38.7]} 13. Na4 {[%clk 0:02:34.7]} 13... Nh5 {[%clk 0:02:31.2]}
14. Bd2 {[%clk 0:02:23.6]} 14... Rc8 {[%clk 0:02:13.3]} 15. e4 {[%clk
0:02:19.7]} 15... Bg6 {[%clk 0:01:59]} 16. exd5 {[%clk 0:02:18.3]} 16... cxd5
{[%clk 0:01:59.9]} 17. Rxc8+ {[%clk 0:02:17.3]} 17... Qxc8 {[%clk 0:02:00.1]}
18. Bxd5 {[%clk 0:02:17]} 18... Na6 {[%clk 0:01:56]} 19. Bxa8 {[%clk 0:02:08.5]}
19... Qxa8 {[%clk 0:01:56.9]} 20. Nxg6 {[%clk 0:02:08.5]} 20... hxg6 {[%clk
0:01:56.9]} 21. Qe2 {[%clk 0:02:08.6]} 1-0

[Event "*** Titled Tuesday Blitz"]
[Site "Chess.com"]
[Date "2020.11.10"]
[Round "6"]
[White "mirciulica14"]
[Black "IrishMonkey"]
[Result "1-0"]
[WhiteElo "2635"]
[BlackElo "2468"]
[TimeControl "180+1"]
[EndTime "11:05:44 PST"]
[Termination "mirciulica14 won by resignation"]

1. d4 {[%clk 0:03:00.9]} 1... d5 {[%clk 0:02:59]} 2. c4 {[%clk 0:03:01.5]} 2...
dxc4 {[%clk 0:02:58.8]} 3. e4 {[%clk 0:03:01.5]} 3... e6 {[%clk 0:02:58.4]} 4.
Bxc4 {[%clk 0:03:01.1]} 4... Nc6 {[%clk 0:02:57.8]} 5. Nf3 {[%clk 0:02:59.5]}
5... Nge7 {[%clk 0:02:56.7]} 6. O-O {[%clk 0:02:59]} 6... g6 {[%clk 0:02:56.8]}
7. Nc3 {[%clk 0:02:50]} 7... Na5 {[%clk 0:02:56.3]} 8. Be2 {[%clk 0:02:45.6]}
8... a6 {[%clk 0:02:54.8]} 9. h4 {[%clk 0:02:39.6]} 9... Bg7 {[%clk 0:02:54.6]}
10. h5 {[%clk 0:02:38.8]} 10... h6 {[%clk 0:02:48.6]} 11. hxg6 {[%clk
0:02:35.4]} 11... Nxg6 {[%clk 0:02:48.6]} 12. e5 {[%clk 0:02:29.3]} 12... Bd7
{[%clk 0:02:42.7]} 13. Be3 {[%clk 0:02:12.5]} 13... Qe7 {[%clk 0:02:34.6]} 14.
a3 {[%clk 0:02:07.7]} 14... O-O-O {[%clk 0:02:33]} 15. b4 {[%clk 0:02:08]} 15...
Nc6 {[%clk 0:02:31.8]} 16. b5 {[%clk 0:02:05.9]} 16... axb5 {[%clk 0:02:30.2]}
17. Bxb5 {[%clk 0:01:34.9]} 17... Na7 {[%clk 0:02:27.5]} 18. Bxd7+ {[%clk
0:01:25.7]} 18... Rxd7 {[%clk 0:02:27.7]} 19. d5 {[%clk 0:01:22.4]} 19... exd5
{[%clk 0:02:25]} 20. Bxa7 {[%clk 0:01:19.5]} 1-0

[Event "*** Titled Tuesday Blitz"]
[Site "Chess.com"]
[Date "2020.11.10"]
[Round "6"]
[White "Rakhimzhan_Alen"]
[Black "Marcin"]
[Result "1/2-1/2"]
[WhiteElo "2629"]
[BlackElo "2486"]
[TimeControl "180+1"]
[EndTime "11:05:47 PST"]
[Termination "Game drawn by agreement"]

1. d4 {[%clk 0:03:00.9]} 1... Nf6 {[%clk 0:02:57.3]} 2. c4 {[%clk 0:03:00.6]}
2... g6 {[%clk 0:02:57.5]} 3. Nc3 {[%clk 0:03:00.7]} 3... Bg7 {[%clk 0:02:57.7]}
4. e4 {[%clk 0:03:00.5]} 4... d6 {[%clk 0:02:58.3]} 5. Be2 {[%clk 0:03:00.9]}
5... O-O {[%clk 0:02:58.9]} 6. Bg5 {[%clk 0:03:01]} 6... c5 {[%clk 0:02:58]} 7.
d5 {[%clk 0:03:00.6]} 7... a6 {[%clk 0:02:57.8]} 8. a4 {[%clk 0:03:00.2]} 8...
Nbd7 {[%clk 0:02:53.1]} 9. Nf3 {[%clk 0:02:57.7]} 9... e6 {[%clk 0:02:51.9]} 10.
O-O {[%clk 0:02:56.9]} 10... h6 {[%clk 0:02:49.6]} 11. Bd2 {[%clk 0:02:55.2]}
11... exd5 {[%clk 0:02:49.7]} 12. exd5 {[%clk 0:02:54.9]} 12... Ng4 {[%clk
0:02:48.9]} 13. Qc2 {[%clk 0:02:50.8]} 13... Kh7 {[%clk 0:02:48.3]} 14. Rae1
{[%clk 0:02:48.4]} 14... Nde5 {[%clk 0:02:45]} 15. Nxe5 {[%clk 0:02:47.8]} 15...
Bxe5 {[%clk 0:02:36.1]} 16. g3 {[%clk 0:02:31.3]} 16... Nxh2 {[%clk 0:01:54.3]}
17. Kxh2 {[%clk 0:01:56.5]} 17... Qh4+ {[%clk 0:01:53.6]} 18. Kg1 {[%clk
0:01:56.7]} 18... Bxg3 {[%clk 0:01:53.1]} 19. fxg3 {[%clk 0:01:54.9]} 19...
Qxg3+ {[%clk 0:01:53.1]} 20. Kh1 {[%clk 0:01:54.8]} 20... Qh3+ {[%clk
0:01:53.6]} 21. Kg1 {[%clk 0:01:54.3]} 21... Qg3+ {[%clk 0:01:54.5]} 1/2-1/2

[Event "*** Titled Tuesday Blitz"]
[Site "Chess.com"]
[Date "2020.11.10"]
[Round "6"]
[White "ZverevLev"]
[Black "CzechmVIII"]
[Result "1-0"]
[WhiteElo "2268"]
[BlackElo "2132"]
[TimeControl "180+1"]
[EndTime "11:06:04 PST"]
[Termination "ZverevLev won by resignation"]

1. e4 {[%clk 0:02:59]} 1... c5 {[%clk 0:03:00]} 2. Nf3 {[%clk 0:02:57.2]} 2...
d6 {[%clk 0:03:00]} 3. d4 {[%clk 0:02:54.3]} 3... cxd4 {[%clk 0:03:00.1]} 4.
Nxd4 {[%clk 0:02:54.8]} 4... Nf6 {[%clk 0:03:00.3]} 5. Nc3 {[%clk 0:02:52.7]}
5... g6 {[%clk 0:03:00.5]} 6. Be3 {[%clk 0:02:51.2]} 6... Bg7 {[%clk 0:03:00.4]}
7. f3 {[%clk 0:02:46.8]} 7... Nc6 {[%clk 0:03:00.5]} 8. Bc4 {[%clk 0:02:44.6]}
8... O-O {[%clk 0:03:00.3]} 9. h4 {[%clk 0:02:41.6]} 9... h5 {[%clk 0:02:59.1]}
10. Qd2 {[%clk 0:02:38.1]} 10... Bd7 {[%clk 0:02:59.2]} 11. O-O-O {[%clk
0:02:37.4]} 11... Rc8 {[%clk 0:02:59.3]} 12. Bb3 {[%clk 0:02:36.4]} 12... Ne5
{[%clk 0:02:59.5]} 13. Bh6 {[%clk 0:02:31.3]} 13... Nc4 {[%clk 0:02:49.4]} 14.
Bxc4 {[%clk 0:02:29.3]} 14... Rxc4 {[%clk 0:02:49.4]} 15. Bxg7 {[%clk
0:02:30.2]} 15... Kxg7 {[%clk 0:02:50]} 16. g4 {[%clk 0:02:29.8]} 16... hxg4
{[%clk 0:02:49.2]} 17. h5 {[%clk 0:02:27.1]} 17... Rh8 {[%clk 0:02:49.3]} 18.
hxg6 {[%clk 0:02:24.1]} 18... fxg6 {[%clk 0:02:49.4]} 19. Rxh8 {[%clk
0:01:58.7]} 19... Qxh8 {[%clk 0:02:40.8]} 20. Qe2 {[%clk 0:01:55.6]} 20... gxf3
{[%clk 0:02:05.3]} 21. Qxc4 {[%clk 0:01:53.2]} 1-0

[Event "*** Titled Tuesday Blitz"]
[Site "Chess.com"]
[Date "2020.11.10"]
[Round "6"]
[White "MPGM"]
[Black "RobertoJBM"]
[Result "1-0"]
[WhiteElo "2480"]
[BlackElo "2764"]
[TimeControl "180+1"]
[EndTime "11:06:16 PST"]
[Termination "MPGM won by resignation"]

1. d4 {[%clk 0:03:00.9]} 1... d5 {[%clk 0:02:58.1]} 2. c4 {[%clk 0:03:00.9]}
2... c6 {[%clk 0:02:57.9]} 3. Nf3 {[%clk 0:03:01.1]} 3... Nf6 {[%clk 0:02:58.3]}
4. g3 {[%clk 0:03:01.6]} 4... dxc4 {[%clk 0:02:57.7]} 5. Bg2 {[%clk 0:03:02.1]}
5... b5 {[%clk 0:02:58]} 6. O-O {[%clk 0:03:00.8]} 6... Bb7 {[%clk 0:02:58.6]}
7. b3 {[%clk 0:02:58.6]} 7... cxb3 {[%clk 0:02:59.5]} 8. Qxb3 {[%clk 0:02:59.1]}
8... a6 {[%clk 0:02:59.1]} 9. Rd1 {[%clk 0:02:59.3]} 9... e6 {[%clk 0:02:58.1]}
10. Bg5 {[%clk 0:02:59.9]} 10... Nbd7 {[%clk 0:02:55.1]} 11. Nc3 {[%clk
0:02:57.9]} 11... h6 {[%clk 0:02:50.4]} 12. Bxf6 {[%clk 0:02:56.5]} 12... Nxf6
{[%clk 0:02:44.2]} 13. Ne5 {[%clk 0:02:55.1]} 13... Rc8 {[%clk 0:02:44]} 14. a4
{[%clk 0:02:45.9]} 14... Qb6 {[%clk 0:02:42.2]} 15. Rac1 {[%clk 0:02:15.6]}
15... Be7 {[%clk 0:02:39.1]} 16. Ne4 {[%clk 0:02:12.9]} 16... Nxe4 {[%clk
0:02:36.2]} 17. Bxe4 {[%clk 0:02:13.8]} 17... c5 {[%clk 0:02:10.4]} 18. Qf3
{[%clk 0:02:13.5]} 18... Bxe4 {[%clk 0:02:05.7]} 19. Qxf7+ {[%clk 0:02:13.2]}
19... Kd8 {[%clk 0:02:05.2]} 20. dxc5+ {[%clk 0:02:13.4]} 1-0

[Event "*** Titled Tuesday Blitz"]
[Site "Chess.com"]
[Date "2020.11.10"]
[Round "6"]
[White "Matibar"]
[Black "juancruzarias"]
[Result "1-0"]
[WhiteElo "2773"]
[BlackElo "2584"]
[TimeControl "180+1"]
[EndTime "11:06:20 PST"]
[Termination "Matibar won by resignation"]

1. e4 {[%clk 0:03:00.9]} 1... e6 {[%clk 0:03:00.3]} 2. d4 {[%clk 0:02:54.9]}
2... d5 {[%clk 0:03:00.7]} 3. Nc3 {[%clk 0:02:51.8]} 3... Nf6 {[%clk 0:03:00.1]}
4. Bg5 {[%clk 0:02:40.9]} 4... Bb4 {[%clk 0:02:55.5]} 5. e5 {[%clk 0:02:35.1]}
5... h6 {[%clk 0:02:55.5]} 6. Bh4 {[%clk 0:02:35.6]} 6... g5 {[%clk 0:02:55.1]}
7. Bg3 {[%clk 0:02:36.2]} 7... Ne4 {[%clk 0:02:55.6]} 8. Ne2 {[%clk 0:02:36.8]}
8... h5 {[%clk 0:02:54.5]} 9. f3 {[%clk 0:02:28]} 9... Nxc3 {[%clk 0:02:48.8]}
10. bxc3 {[%clk 0:02:24.6]} 10... Be7 {[%clk 0:02:48.5]} 11. Bf2 {[%clk
0:02:23.1]} 11... b6 {[%clk 0:02:47.5]} 12. f4 {[%clk 0:01:33.4]} 12... g4
{[%clk 0:02:44.9]} 13. h3 {[%clk 0:01:30.7]} 13... Rg8 {[%clk 0:02:40.8]} 14.
hxg4 {[%clk 0:01:26.4]} 14... hxg4 {[%clk 0:02:41.7]} 15. Ng3 {[%clk 0:01:26.6]}
15... Ba6 {[%clk 0:02:31.7]} 16. Bxa6 {[%clk 0:01:26.3]} 16... Nxa6 {[%clk
0:02:31.7]} 17. Qd3 {[%clk 0:01:27.2]} 17... Qc8 {[%clk 0:02:28.3]} 18. Qh7
{[%clk 0:01:23.8]} 18... Rf8 {[%clk 0:02:27.8]} 19. f5 {[%clk 0:01:24.4]} 19...
c5 {[%clk 0:02:27.6]} 20. f6 {[%clk 0:01:18.3]} 20... Bd8 {[%clk 0:02:26.9]} 21.
Qg7 {[%clk 0:01:11.4]} 21... Bc7 {[%clk 0:02:09.1]} 22. Qxf8+ {[%clk 0:01:10.5]}
1-0

[Event "*** Titled Tuesday Blitz"]
[Site "Chess.com"]
[Date "2020.11.10"]
[Round "6"]
[White "RaneshRatnesan"]
[Black "LittleMyMoomin"]
[Result "0-1"]
[WhiteElo "2087"]
[BlackElo "1852"]
[TimeControl "180+1"]
[EndTime "11:06:28 PST"]
[Termination "LittleMyMoomin won by resignation"]

1. d4 {[%clk 0:02:53.3]} 1... Nf6 {[%clk 0:02:58.6]} 2. c4 {[%clk 0:02:52.4]}
2... e6 {[%clk 0:02:59]} 3. Nc3 {[%clk 0:02:52.2]} 3... Bb4 {[%clk 0:02:59]} 4.
Qc2 {[%clk 0:02:52.3]} 4... O-O {[%clk 0:02:57.9]} 5. a3 {[%clk 0:02:52.4]} 5...
Bxc3+ {[%clk 0:02:56.1]} 6. Qxc3 {[%clk 0:02:53.3]} 6... c5 {[%clk 0:02:55.9]}
7. Nf3 {[%clk 0:02:49.6]} 7... b6 {[%clk 0:02:53.7]} 8. Bg5 {[%clk 0:02:47.3]}
8... Bb7 {[%clk 0:02:47.2]} 9. e3 {[%clk 0:02:44.9]} 9... d6 {[%clk 0:02:46]}
10. Be2 {[%clk 0:02:45]} 10... Nbd7 {[%clk 0:02:46.1]} 11. Rd1 {[%clk 0:02:45]}
11... h6 {[%clk 0:02:46]} 12. Bh4 {[%clk 0:02:44.6]} 12... g5 {[%clk 0:02:39.1]}
13. Bg3 {[%clk 0:02:41.9]} 13... Ne4 {[%clk 0:02:37.7]} 14. Qc2 {[%clk
0:02:41.4]} 14... Qe7 {[%clk 0:02:31.9]} 15. d5 {[%clk 0:02:34.7]} 15... f5
{[%clk 0:02:12.5]} 16. dxe6 {[%clk 0:02:09]} 16... Qxe6 {[%clk 0:02:13.4]} 17.
O-O {[%clk 0:02:03.5]} 17... Ne5 {[%clk 0:01:59.5]} 18. Rd2 {[%clk 0:01:46]}
18... Rad8 {[%clk 0:01:58.6]} 19. Rfd1 {[%clk 0:01:43.7]} 19... Nxd2 {[%clk
0:01:58.2]} 20. Rxd2 {[%clk 0:01:44.6]} 20... Nxf3+ {[%clk 0:01:56.4]} 21. Bxf3
{[%clk 0:01:45.5]} 21... Bxf3 {[%clk 0:01:56]} 22. gxf3 {[%clk 0:01:46.4]} 22...
f4 {[%clk 0:01:54.6]} 23. exf4 {[%clk 0:01:45.6]} 23... gxf4 {[%clk 0:01:48.9]}
24. Bh4 {[%clk 0:01:46.1]} 24... Qe1+ {[%clk 0:01:48.3]} 25. Kg2 {[%clk
0:01:45.4]} 25... Rd7 {[%clk 0:01:47.3]} 26. Rd1 {[%clk 0:01:35.9]} 26... Rg7+
{[%clk 0:01:45.3]} 27. Kh3 {[%clk 0:01:36.4]} 27... Qe6+ {[%clk 0:01:44.2]} 0-1

[Event "*** Titled Tuesday Blitz"]
[Site "Chess.com"]
[Date "2020.11.10"]
[Round "6"]
[White "VinzentSpitzl"]
[Black "KarstenHansch"]
[Result "1-0"]
[WhiteElo "2331"]
[BlackElo "2508"]
[TimeControl "180+1"]
[EndTime "11:06:39 PST"]
[Termination "VinzentSpitzl won by resignation"]

1. e4 {[%clk 0:03:00.9]} 1... c6 {[%clk 0:02:59.8]} 2. Nf3 {[%clk 0:02:48.8]}
2... d5 {[%clk 0:03:00.7]} 3. Nc3 {[%clk 0:02:49.4]} 3... dxe4 {[%clk
0:02:59.5]} 4. Nxe4 {[%clk 0:02:50.3]} 4... Nf6 {[%clk 0:02:59.9]} 5. Qe2 {[%clk
0:02:50.8]} 5... Nxe4 {[%clk 0:02:59]} 6. Qxe4 {[%clk 0:02:51.4]} 6... Qd5
{[%clk 0:02:59.7]} 7. Qh4 {[%clk 0:02:51.9]} 7... Nd7 {[%clk 0:02:54.1]} 8. Bc4
{[%clk 0:02:47.1]} 8... Qa5 {[%clk 0:02:50.8]} 9. O-O {[%clk 0:02:44.7]} 9... e6
{[%clk 0:02:50]} 10. d4 {[%clk 0:02:39.4]} 10... Nf6 {[%clk 0:02:49.8]} 11. Bg5
{[%clk 0:02:32.3]} 11... Be7 {[%clk 0:02:49.1]} 12. c3 {[%clk 0:02:26.9]} 12...
h6 {[%clk 0:02:48.8]} 13. Bd2 {[%clk 0:02:25.8]} 13... Qh5 {[%clk 0:02:44.5]}
14. Qxh5 {[%clk 0:02:25.2]} 14... Nxh5 {[%clk 0:02:45.4]} 15. b4 {[%clk
0:02:17.1]} 15... Nf6 {[%clk 0:02:41]} 16. a4 {[%clk 0:02:11.3]} 16... Ne4
{[%clk 0:02:40.7]} 17. Bd3 {[%clk 0:02:01.8]} 17... Nxd2 {[%clk 0:02:40]} 18.
Nxd2 {[%clk 0:02:02.7]} 18... b6 {[%clk 0:02:39.1]} 19. b5 {[%clk 0:01:53.3]}
19... Bb7 {[%clk 0:02:36]} 20. Be4 {[%clk 0:01:47.6]} 20... Rc8 {[%clk
0:02:31.6]} 21. a5 {[%clk 0:01:43.7]} 21... Bd8 {[%clk 0:02:21.7]} 22. Nc4
{[%clk 0:01:31.4]} 22... Ke7 {[%clk 0:02:15.4]} 23. axb6 {[%clk 0:01:15.9]}
23... Bxb6 {[%clk 0:02:14.8]} 24. Nxb6 {[%clk 0:01:07.7]} 24... axb6 {[%clk
0:02:15.7]} 25. Ra7 {[%clk 0:01:07.7]} 25... Rc7 {[%clk 0:02:08.5]} 26. bxc6
{[%clk 0:01:07.7]} 26... Ra8 {[%clk 0:02:05.4]} 27. cxb7 {[%clk 0:01:01.9]} 1-0